[Event "Titled Tuesday Blitz June 20 Early 2023"]
[White "Fernandez Siles, Luis"]
[Black "Santos Flores, Alberto"]
[WhiteFideId "2209420"]
[BlackFideId "3601234"]
[WhiteElo "2195"]
[BlackElo "2235"]
[Result "0-1"]
[Round "11"]
[TimeControl "180+2"]
[Date "2023.06.20"]
[WhiteClock "0:00:00"]
[BlackClock "0:00:21"]
[Board "102"]

1. e4 {[%clk 0:03:00]}  e6 {[%clk 0:02:59]} 2. d4 {[%clk 0:02:59]}  d5 {[%clk 0:03:00]} 3. Nd2 {[%clk 0:02:59]}  c5 {[%clk 0:02:59]} 4. c3 {[%clk 0:02:59]}  Nc6 {[%clk 0:02:52]} 5. Ngf3 {[%clk 0:02:58]}  cxd4 {[%clk 0:02:50]} 6. cxd4 {[%clk 0:02:59]}  Qb6 {[%clk 0:02:50]} 7. e5 {[%clk 0:02:15]}  Nxd4 {[%clk 0:02:45]} 8. Nxd4 {[%clk 0:02:14]}  Qxd4 {[%clk 0:02:46]} 9. Bb5+ {[%clk 0:02:14]}  Bd7 {[%clk 0:02:45]} 10. Bxd7+ {[%clk 0:02:13]}  Kxd7 {[%clk 0:02:46]} 11. O-O {[%clk 0:02:08]}  Ne7 {[%clk 0:02:44]} 12. Qb3 {[%clk 0:02:04]}  Qb6 {[%clk 0:02:40]} 13. Qf3 {[%clk 0:01:45]}  Nc6 {[%clk 0:02:34]} 14. Qxf7+ {[%clk 0:01:41]}  Be7 {[%clk 0:02:35]} 15. Nf3 {[%clk 0:01:35]}  Raf8 {[%clk 0:02:33]} 16. Qh5 {[%clk 0:01:26]}  Rf5 {[%clk 0:02:28]} 17. Qg4 {[%clk 0:01:23]}  g5 {[%clk 0:02:11]} 18. Be3 {[%clk 0:01:11]}  Qd8 {[%clk 0:02:07]} 19. Qa4 {[%clk 0:00:53]}  h5 {[%clk 0:01:58]} 20. Rac1 {[%clk 0:00:43]}  Qa5 {[%clk 0:01:47]} 21. Qxa5 {[%clk 0:00:35]}  Nxa5 {[%clk 0:01:47]} 22. Bxa7 {[%clk 0:00:35]}  Nc6 {[%clk 0:01:44]} 23. Bc5 {[%clk 0:00:29]}  Bxc5 {[%clk 0:01:32]} 24. Rxc5 {[%clk 0:00:30]}  g4 {[%clk 0:01:33]} 25. Nh4 {[%clk 0:00:28]}  Rg5 {[%clk 0:01:24]} 26. f4 {[%clk 0:00:24]}  gxf3 {[%clk 0:01:22]} 27. Nxf3 {[%clk 0:00:24]}  Rf5 {[%clk 0:01:23]} 28. Rfc1 {[%clk 0:00:19]}  Ra8 {[%clk 0:01:08]} 29. a3 {[%clk 0:00:18]}  Ra4 {[%clk 0:01:05]} 30. Rb5 {[%clk 0:00:16]}  Kc7 {[%clk 0:01:05]} 31. b4 {[%clk 0:00:14]}  Rxa3 {[%clk 0:01:00]} 32. Nd4 {[%clk 0:00:12]}  Rxe5 {[%clk 0:01:00]} 33. Rbc5 {[%clk 0:00:09]}  Kd7 {[%clk 0:00:51]} 34. Nxc6 {[%clk 0:00:09]}  bxc6 {[%clk 0:00:52]} 35. Rxc6 {[%clk 0:00:09]}  Re2 {[%clk 0:00:48]} 36. R6c2 {[%clk 0:00:01]}  Rxc2 {[%clk 0:00:44]} 37. Rxc2 {[%clk 0:00:02]}  Rb3 {[%clk 0:00:45]} 38. Rf2 {[%clk 0:00:01]}  Rxb4 {[%clk 0:00:43]} 39. Rf7+ {[%clk 0:00:01]}  Kd6 {[%clk 0:00:43]} 40. Rh7 {[%clk 0:00:02]}  h4 {[%clk 0:00:43]} 41. Kf2 {[%clk 0:00:03]}  e5 {[%clk 0:00:30]} 42. Kf3 {[%clk 0:00:03]}  Rf4+ {[%clk 0:00:29]} 43. Ke3 {[%clk 0:00:03]}  d4+ {[%clk 0:00:29]} 44. Ke2 {[%clk 0:00:03]}  Kd5 {[%clk 0:00:29]} 45. Rd7+ {[%clk 0:00:03]}  Ke4 {[%clk 0:00:28]} 46. Ra7 {[%clk 0:00:03]}  d3+ {[%clk 0:00:24]} 47. Ke1 {[%clk 0:00:04]}  Ke3 {[%clk 0:00:23]} 48. Ra2 {[%clk 0:00:00]}  Rb4 {[%clk 0:00:21]} 0-1


[Site "https://www.chess.com"]

[Event "Titled Tuesday Blitz June 20 Early 2023"]
[White "Corredor Castellanos, Camilo"]
[Black "Wang, Alexander J"]
[WhiteFideId "4425871"]
[BlackFideId "30955270"]
[WhiteElo "1994"]
[BlackElo "2317"]
[Result "1-0"]
[Round "11"]
[TimeControl "180+2"]
[Date "2023.06.20"]
[WhiteClock "0:02:25"]
[BlackClock "0:02:17"]
[Board "105"]

1. e4 {[%clk 0:03:00]}  c5 {[%clk 0:02:59]} 2. Nf3 {[%clk 0:03:00]}  d6 {[%clk 0:03:00]} 3. d4 {[%clk 0:03:01]}  cxd4 {[%clk 0:03:01]} 4. Nxd4 {[%clk 0:03:01]}  Nf6 {[%clk 0:03:01]} 5. Nc3 {[%clk 0:03:02]}  g6 {[%clk 0:03:02]} 6. Be2 {[%clk 0:02:58]}  Bg7 {[%clk 0:03:02]} 7. O-O {[%clk 0:02:57]}  O-O {[%clk 0:03:02]} 8. h3 {[%clk 0:02:58]}  Nc6 {[%clk 0:03:01]} 9. Be3 {[%clk 0:02:58]}  Bd7 {[%clk 0:02:59]} 10. f4 {[%clk 0:02:57]}  Rc8 {[%clk 0:02:55]} 11. Nxc6 {[%clk 0:02:49]}  Bxc6 {[%clk 0:02:55]} 12. Bf3 {[%clk 0:02:49]}  a6 {[%clk 0:02:50]} 13. Bd4 {[%clk 0:02:43]}  Nd7 {[%clk 0:02:49]} 14. Bxg7 {[%clk 0:02:42]}  Kxg7 {[%clk 0:02:50]} 15. Qd4+ {[%clk 0:02:42]}  Kg8 {[%clk 0:02:49]} 16. Rad1 {[%clk 0:02:37]}  Qb6 {[%clk 0:02:49]} 17. Kh2 {[%clk 0:02:30]}  Qxb2 {[%clk 0:02:37]} 18. Nd5 {[%clk 0:02:26]}  Qxd4 {[%clk 0:02:32]} 19. Nxe7+ {[%clk 0:02:27]}  Kg7 {[%clk 0:02:31]} 20. Rxd4 {[%clk 0:02:27]}  Rcd8 {[%clk 0:02:23]} 21. Nxc6 {[%clk 0:02:26]}  bxc6 {[%clk 0:02:24]} 22. Rxd6 {[%clk 0:02:26]}  Nf6 {[%clk 0:02:17]} 23. Rxc6 {[%clk 0:02:25]} 1-0


[Site "https://www.chess.com"]

[Event "Titled Tuesday Blitz June 20 Early 2023"]
[White "Brown, Raehanna"]
[Black "Grossboss19"]
[WhiteFideId "7402740"]
[WhiteElo "1655"]
[BlackElo "2443"]
[Result "1/2-1/2"]
[Round "11"]
[TimeControl "180+2"]
[Date "2023.06.20"]
[WhiteClock "0:00:49"]
[BlackClock "0:01:02"]
[Board "106"]

1. c4 {[%clk 0:03:00]}  e6 {[%clk 0:02:50]} 2. Nc3 {[%clk 0:03:01]}  d5 {[%clk 0:02:51]} 3. cxd5 {[%clk 0:03:00]}  exd5 {[%clk 0:02:52]} 4. d4 {[%clk 0:03:01]}  c6 {[%clk 0:02:50]} 5. Bf4 {[%clk 0:03:00]}  Bd6 {[%clk 0:02:49]} 6. Bg3 {[%clk 0:02:59]}  Nf6 {[%clk 0:02:48]} 7. e3 {[%clk 0:02:59]}  O-O {[%clk 0:02:49]} 8. Bd3 {[%clk 0:03:00]}  h6 {[%clk 0:02:45]} 9. Nf3 {[%clk 0:02:54]}  Qe7 {[%clk 0:02:45]} 10. O-O {[%clk 0:02:52]}  Bg4 {[%clk 0:02:44]} 11. Be2 {[%clk 0:02:51]}  Nbd7 {[%clk 0:02:43]} 12. Qc2 {[%clk 0:02:47]}  Bxg3 {[%clk 0:02:32]} 13. hxg3 {[%clk 0:02:47]}  a6 {[%clk 0:02:24]} 14. a3 {[%clk 0:02:41]}  Rae8 {[%clk 0:02:18]} 15. b4 {[%clk 0:02:40]}  Nh7 {[%clk 0:02:14]} 16. Na4 {[%clk 0:02:37]}  Ndf6 {[%clk 0:02:06]} 17. Ne5 {[%clk 0:02:26]}  Bxe2 {[%clk 0:02:02]} 18. Qxe2 {[%clk 0:02:27]}  Nd7 {[%clk 0:01:58]} 19. Nxd7 {[%clk 0:02:24]}  Qxd7 {[%clk 0:01:58]} 20. Nc5 {[%clk 0:02:24]}  Qc8 {[%clk 0:01:55]} 21. Rac1 {[%clk 0:02:22]}  Ng5 {[%clk 0:01:54]} 22. a4 {[%clk 0:02:15]}  g6 {[%clk 0:01:53]} 23. b5 {[%clk 0:02:10]}  axb5 {[%clk 0:01:52]} 24. axb5 {[%clk 0:02:10]}  Kg7 {[%clk 0:01:47]} 25. bxc6 {[%clk 0:02:06]}  bxc6 {[%clk 0:01:47]} 26. Nd3 {[%clk 0:02:06]}  Qe6 {[%clk 0:01:41]} 27. Ne5 {[%clk 0:02:02]}  Rc8 {[%clk 0:01:40]} 28. Qa6 {[%clk 0:02:01]}  c5 {[%clk 0:01:35]} 29. Qxe6 {[%clk 0:01:58]}  Nxe6 {[%clk 0:01:34]} 30. Nd7 {[%clk 0:01:54]}  Rfd8 {[%clk 0:01:33]} 31. Nxc5 {[%clk 0:01:52]}  Nxc5 {[%clk 0:01:33]} 32. Rxc5 {[%clk 0:01:53]}  Rxc5 {[%clk 0:01:33]} 33. dxc5 {[%clk 0:01:53]}  Rc8 {[%clk 0:01:33]} 34. Rc1 {[%clk 0:01:53]}  Kf6 {[%clk 0:01:33]} 35. Kf1 {[%clk 0:01:53]}  Ke6 {[%clk 0:01:33]} 36. Ke2 {[%clk 0:01:53]}  Kd7 {[%clk 0:01:33]} 37. Kd3 {[%clk 0:01:53]}  Kc6 {[%clk 0:01:33]} 38. Kd4 {[%clk 0:01:50]}  Re8 {[%clk 0:01:33]} 39. f3 {[%clk 0:01:41]}  Ra8 {[%clk 0:01:33]} 40. Rc2 {[%clk 0:01:38]}  f6 {[%clk 0:01:30]} 41. e4 {[%clk 0:01:22]}  Ra4+ {[%clk 0:01:30]} 42. Ke3 {[%clk 0:01:22]}  dxe4 {[%clk 0:01:19]} 43. fxe4 {[%clk 0:01:22]}  h5 {[%clk 0:01:17]} 44. Kf4 {[%clk 0:01:20]}  Ra1 {[%clk 0:01:15]} 45. g4 {[%clk 0:01:17]}  Rf1+ {[%clk 0:01:08]} 46. Kg3 {[%clk 0:01:16]}  hxg4 {[%clk 0:01:06]} 47. Kxg4 {[%clk 0:01:16]}  Re1 {[%clk 0:01:05]} 48. Kf4 {[%clk 0:01:09]}  Rf1+ {[%clk 0:01:04]} 49. Kg4 {[%clk 0:01:09]}  Re1 {[%clk 0:01:03]} 50. Kf3 {[%clk 0:00:55]}  Rf1+ {[%clk 0:01:03]} 51. Ke2 {[%clk 0:00:50]}  Rg1 {[%clk 0:01:02]} 52. Kf2 {[%clk 0:00:49]}  Ra1 {[%clk 0:01:02]} 53. Kf3 {[%clk 0:00:49]}  Rf1+ {[%clk 0:01:02]} 54. Kg3 {[%clk 0:00:49]}  Re1 {[%clk 0:01:02]} 55. Kf3 {[%clk 0:00:49]}  Rf1+ {[%clk 0:01:02]} 1/2-1/2


[Site "https://www.chess.com"]

[Event "Titled Tuesday Blitz June 20 Early 2023"]
[White "Ilkhomi, Jaloliddin"]
[Black "Bueno, Alfeu Junior Varela"]
[WhiteFideId "14700948"]
[BlackFideId "2108879"]
[WhiteElo "2045"]
[BlackElo "2175"]
[Result "1-0"]
[Round "11"]
[TimeControl "180+2"]
[Date "2023.06.20"]
[WhiteClock "0:02:01"]
[BlackClock "0:00:00"]
[Board "108"]

1. Nf3 {[%clk 0:03:00]}  e6 {[%clk 0:02:59]} 2. c4 {[%clk 0:02:56]}  f5 {[%clk 0:02:59]} 3. d4 {[%clk 0:02:55]}  b6 {[%clk 0:02:59]} 4. Nc3 {[%clk 0:02:55]}  Bb4 {[%clk 0:02:59]} 5. Bd2 {[%clk 0:02:54]}  Bb7 {[%clk 0:02:59]} 6. e3 {[%clk 0:02:53]}  Nf6 {[%clk 0:02:59]} 7. Bd3 {[%clk 0:02:51]}  O-O {[%clk 0:02:58]} 8. O-O {[%clk 0:02:51]}  d6 {[%clk 0:02:58]} 9. a3 {[%clk 0:02:50]}  Bxc3 {[%clk 0:02:59]} 10. Bxc3 {[%clk 0:02:51]}  Qe8 {[%clk 0:02:58]} 11. Nd2 {[%clk 0:02:49]}  Nbd7 {[%clk 0:02:55]} 12. f3 {[%clk 0:02:49]}  Qg6 {[%clk 0:02:55]} 13. Qe2 {[%clk 0:02:47]}  Rae8 {[%clk 0:02:55]} 14. e4 {[%clk 0:02:47]}  fxe4 {[%clk 0:02:55]} 15. Nxe4 {[%clk 0:02:48]}  Nh5 {[%clk 0:02:26]} 16. Nxd6 {[%clk 0:02:30]}  Nf4 {[%clk 0:02:23]} 17. Bxg6 {[%clk 0:02:31]}  Nxe2+ {[%clk 0:02:21]} 18. Kf2 {[%clk 0:02:32]}  hxg6 {[%clk 0:02:05]} 19. Nxe8 {[%clk 0:02:27]}  Nxc3 {[%clk 0:02:02]} 20. Nxc7 {[%clk 0:02:26]}  Ne4+ {[%clk 0:01:30]} 21. Kg1 {[%clk 0:02:25]}  Nd2 {[%clk 0:01:27]} 22. Rfe1 {[%clk 0:02:21]}  Nxc4 {[%clk 0:01:14]} 23. Nxe6 {[%clk 0:02:21]}  Re8 {[%clk 0:01:04]} 24. Rac1 {[%clk 0:02:22]}  Bd5 {[%clk 0:00:42]} 25. Nc7 {[%clk 0:02:19]}  Rxe1+ {[%clk 0:00:41]} 26. Rxe1 {[%clk 0:02:20]}  Bf7 {[%clk 0:00:40]} 27. d5 {[%clk 0:02:00]}  Nxb2 {[%clk 0:00:15]} 28. d6 {[%clk 0:02:00]}  Nc4 {[%clk 0:00:14]} 29. Re7 {[%clk 0:02:01]}  Nc5 {[%clk 0:00:00]} 30. d7 {[%clk 0:02:01]} 1-0


[Site "https://www.chess.com"]

[Event "Titled Tuesday Blitz June 20 Early 2023"]
[White "Shapiro, Daniel"]
[Black "Arat, Ufuk Sezen"]
[WhiteFideId "2001780"]
[BlackFideId "6309089"]
[WhiteElo "2339"]
[BlackElo "2289"]
[Result "0-1"]
[Round "11"]
[TimeControl "180+2"]
[Date "2023.06.20"]
[WhiteClock "0:00:00"]
[BlackClock "0:01:33"]
[Board "109"]

1. d4 {[%clk 0:03:00]}  Nf6 {[%clk 0:02:56]} 2. c4 {[%clk 0:03:00]}  e6 {[%clk 0:02:57]} 3. g3 {[%clk 0:03:00]}  d5 {[%clk 0:02:57]} 4. Nf3 {[%clk 0:03:00]}  c5 {[%clk 0:02:56]} 5. cxd5 {[%clk 0:02:59]}  exd5 {[%clk 0:02:56]} 6. Bg2 {[%clk 0:02:59]}  cxd4 {[%clk 0:02:56]} 7. Nxd4 {[%clk 0:02:59]}  Nc6 {[%clk 0:02:57]} 8. Nxc6 {[%clk 0:02:52]}  bxc6 {[%clk 0:02:56]} 9. O-O {[%clk 0:02:52]}  Be7 {[%clk 0:02:56]} 10. b3 {[%clk 0:02:46]}  O-O {[%clk 0:02:52]} 11. Bb2 {[%clk 0:02:46]}  Be6 {[%clk 0:02:53]} 12. Nc3 {[%clk 0:02:43]}  c5 {[%clk 0:02:50]} 13. Rc1 {[%clk 0:02:20]}  d4 {[%clk 0:02:48]} 14. Na4 {[%clk 0:02:03]}  Rc8 {[%clk 0:02:42]} 15. Ba3 {[%clk 0:02:02]}  Bd5 {[%clk 0:02:37]} 16. Bxd5 {[%clk 0:01:22]}  Nxd5 {[%clk 0:02:33]} 17. Bxc5 {[%clk 0:00:51]}  Bxc5 {[%clk 0:02:27]} 18. Rxc5 {[%clk 0:00:47]}  Rxc5 {[%clk 0:02:26]} 19. Nxc5 {[%clk 0:00:46]}  Nc3 {[%clk 0:02:27]} 20. Qd2 {[%clk 0:00:38]}  Qe7 {[%clk 0:02:24]} 21. Nd3 {[%clk 0:00:23]}  Nxe2+ {[%clk 0:02:18]} 22. Kg2 {[%clk 0:00:23]}  Qb7+ {[%clk 0:02:15]} 23. f3 {[%clk 0:00:22]}  Nc3 {[%clk 0:02:14]} 24. Nf4 {[%clk 0:00:20]}  Qb6 {[%clk 0:02:07]} 25. Re1 {[%clk 0:00:19]}  Rd8 {[%clk 0:02:05]} 26. Re5 {[%clk 0:00:17]}  h6 {[%clk 0:02:01]} 27. Nd3 {[%clk 0:00:17]}  Qa6 {[%clk 0:01:50]} 28. a4 {[%clk 0:00:15]}  Qb6 {[%clk 0:01:49]} 29. b4 {[%clk 0:00:13]}  Qc6 {[%clk 0:01:48]} 30. Rc5 {[%clk 0:00:11]}  Qxa4 {[%clk 0:01:48]} 31. Rxc3 {[%clk 0:00:09]}  dxc3 {[%clk 0:01:48]} 32. Qxc3 {[%clk 0:00:10]}  Qa2+ {[%clk 0:01:48]} 33. Kh3 {[%clk 0:00:09]}  Qe2 {[%clk 0:01:48]} 34. Nf4 {[%clk 0:00:08]}  Rd2 {[%clk 0:01:48]} 35. Nxe2 {[%clk 0:00:07]}  Rxe2 {[%clk 0:01:48]} 36. Qc8+ {[%clk 0:00:07]}  Kh7 {[%clk 0:01:48]} 37. Qf5+ {[%clk 0:00:07]}  Kg8 {[%clk 0:01:49]} 38. Qc8+ {[%clk 0:00:07]}  Kh7 {[%clk 0:01:49]} 39. Qc5 {[%clk 0:00:07]}  a6 {[%clk 0:01:48]} 40. Qc4 {[%clk 0:00:07]}  Re6 {[%clk 0:01:48]} 41. Qd3+ {[%clk 0:00:06]}  Kg8 {[%clk 0:01:48]} 42. f4 {[%clk 0:00:06]}  g6 {[%clk 0:01:47]} 43. Kg2 {[%clk 0:00:07]}  Kg7 {[%clk 0:01:47]} 44. Kf3 {[%clk 0:00:07]}  h5 {[%clk 0:01:48]} 45. g4 {[%clk 0:00:08]}  hxg4+ {[%clk 0:01:48]} 46. Kxg4 {[%clk 0:00:09]}  Rf6 {[%clk 0:01:49]} 47. h4 {[%clk 0:00:08]}  Re6 {[%clk 0:01:50]} 48. h5 {[%clk 0:00:08]}  gxh5+ {[%clk 0:01:49]} 49. Kxh5 {[%clk 0:00:09]}  Rg6 {[%clk 0:01:50]} 50. f5 {[%clk 0:00:08]}  Rh6+ {[%clk 0:01:43]} 51. Kg5 {[%clk 0:00:08]}  Rc6 {[%clk 0:01:42]} 52. Qd4+ {[%clk 0:00:07]}  f6+ {[%clk 0:01:43]} 53. Kf4 {[%clk 0:00:06]}  Rc7 {[%clk 0:01:43]} 54. Ke4 {[%clk 0:00:05]}  Re7+ {[%clk 0:01:43]} 55. Kd3 {[%clk 0:00:06]}  Re5 {[%clk 0:01:39]} 56. Qd7+ {[%clk 0:00:04]}  Kh6 {[%clk 0:01:39]} 57. Kc4 {[%clk 0:00:03]}  Kg5 {[%clk 0:01:39]} 58. Qc8 {[%clk 0:00:03]}  Re4+ {[%clk 0:01:35]} 59. Kc3 {[%clk 0:00:02]}  Re3+ {[%clk 0:01:32]} 60. Kd2 {[%clk 0:00:00]}  Ra3 {[%clk 0:01:33]} 0-1


[Site "https://www.chess.com"]

[Event "Titled Tuesday Blitz June 20 Early 2023"]
[White "Bilan, Danila"]
[Black "Samaganova, Aleksandra"]
[WhiteFideId "24161918"]
[BlackFideId "13800221"]
[WhiteElo "2146"]
[BlackElo "1858"]
[Result "1-0"]
[Round "11"]
[TimeControl "180+2"]
[Date "2023.06.20"]
[WhiteClock "0:00:14"]
[BlackClock "0:00:03"]
[Board "112"]

1. d4 {[%clk 0:02:47]}  Nf6 {[%clk 0:02:59]} 2. Nf3 {[%clk 0:02:46]}  e6 {[%clk 0:02:59]} 3. g3 {[%clk 0:02:46]}  b6 {[%clk 0:02:58]} 4. Bg2 {[%clk 0:02:47]}  Bb7 {[%clk 0:02:57]} 5. O-O {[%clk 0:02:48]}  c5 {[%clk 0:02:57]} 6. c4 {[%clk 0:02:49]}  cxd4 {[%clk 0:02:57]} 7. Qxd4 {[%clk 0:02:49]}  Nc6 {[%clk 0:02:54]} 8. Qd1 {[%clk 0:02:50]}  Be7 {[%clk 0:02:53]} 9. Nc3 {[%clk 0:02:50]}  O-O {[%clk 0:02:53]} 10. Bf4 {[%clk 0:02:50]}  Na5 {[%clk 0:02:48]} 11. b3 {[%clk 0:02:42]}  d5 {[%clk 0:02:47]} 12. Ne5 {[%clk 0:02:38]}  Rc8 {[%clk 0:02:37]} 13. Rc1 {[%clk 0:02:29]}  a6 {[%clk 0:02:25]} 14. cxd5 {[%clk 0:02:17]}  exd5 {[%clk 0:02:14]} 15. e3 {[%clk 0:01:56]}  Ba3 {[%clk 0:02:01]} 16. Rc2 {[%clk 0:01:56]}  h6 {[%clk 0:02:00]} 17. h4 {[%clk 0:01:18]}  Bb4 {[%clk 0:01:35]} 18. Nxd5 {[%clk 0:01:13]}  Rxc2 {[%clk 0:01:19]} 19. Nxf6+ {[%clk 0:01:08]}  Qxf6 {[%clk 0:00:43]} 20. Qxc2 {[%clk 0:01:07]}  Bxg2 {[%clk 0:00:42]} 21. Kxg2 {[%clk 0:01:08]}  Rd8 {[%clk 0:00:34]} 22. Rd1 {[%clk 0:00:55]}  Rxd1 {[%clk 0:00:33]} 23. Qxd1 {[%clk 0:00:56]}  g5 {[%clk 0:00:29]} 24. hxg5 {[%clk 0:00:45]}  hxg5 {[%clk 0:00:28]} 25. Qg4 {[%clk 0:00:44]}  Be7 {[%clk 0:00:26]} 26. Nf3 {[%clk 0:00:35]}  Qg6 {[%clk 0:00:14]} 27. Bxg5 {[%clk 0:00:19]}  f6 {[%clk 0:00:07]} 28. Qe6+ {[%clk 0:00:17]}  Kf8 {[%clk 0:00:08]} 29. Bf4 {[%clk 0:00:15]}  Qe8 {[%clk 0:00:03]} 30. Bh6# {[%clk 0:00:14]} 1-0


[Site "https://www.chess.com"]

[Event "Titled Tuesday Blitz June 20 Early 2023"]
[White "Mayaud, Raphael"]
[Black "Reprintsev, Alexander"]
[WhiteFideId "627151"]
[BlackFideId "14100541"]
[WhiteElo "2191"]
[BlackElo "2229"]
[Result "0-1"]
[Round "11"]
[TimeControl "180+2"]
[Date "2023.06.20"]
[WhiteClock "0:00:33"]
[BlackClock "0:01:52"]
[Board "113"]

1. d4 {[%clk 0:02:49]}  d5 {[%clk 0:02:59]} 2. Nf3 {[%clk 0:02:49]}  Nc6 {[%clk 0:02:58]} 3. c4 {[%clk 0:02:48]}  e5 {[%clk 0:02:53]} 4. dxe5 {[%clk 0:02:46]}  d4 {[%clk 0:02:53]} 5. a3 {[%clk 0:02:45]}  g6 {[%clk 0:02:48]} 6. b4 {[%clk 0:02:32]}  Bg7 {[%clk 0:02:46]} 7. Bb2 {[%clk 0:02:32]}  Nh6 {[%clk 0:02:29]} 8. Nbd2 {[%clk 0:02:07]}  Nf5 {[%clk 0:02:15]} 9. Nb3 {[%clk 0:02:07]}  a5 {[%clk 0:02:11]} 10. b5 {[%clk 0:02:01]}  Nxe5 {[%clk 0:02:11]} 11. Nxe5 {[%clk 0:02:01]}  Bxe5 {[%clk 0:02:11]} 12. e3 {[%clk 0:01:42]}  O-O {[%clk 0:02:10]} 13. Bxd4 {[%clk 0:01:31]}  Nxd4 {[%clk 0:02:09]} 14. Nxd4 {[%clk 0:01:30]}  Qh4 {[%clk 0:02:04]} 15. Rc1 {[%clk 0:01:12]}  Rd8 {[%clk 0:02:03]} 16. g3 {[%clk 0:01:03]}  Qf6 {[%clk 0:01:59]} 17. Bg2 {[%clk 0:00:56]}  Bxd4 {[%clk 0:01:58]} 18. exd4 {[%clk 0:00:56]}  Rxd4 {[%clk 0:01:58]} 19. Qc2 {[%clk 0:00:47]}  Bf5 {[%clk 0:01:56]} 20. Qc3 {[%clk 0:00:43]}  Re8+ {[%clk 0:01:56]} 21. Kf1 {[%clk 0:00:33]}  Rd1+ {[%clk 0:01:52]} 0-1


[Site "https://www.chess.com"]

[Event "Titled Tuesday Blitz June 20 Early 2023"]
[White "Rios Escobar, Adan"]
[Black "Rosh Jain"]
[WhiteFideId "3403645"]
[BlackFideId "25789465"]
[WhiteElo "2468"]
[BlackElo "2233"]
[Result "1-0"]
[Round "11"]
[TimeControl "180+2"]
[Date "2023.06.20"]
[WhiteClock "0:00:19"]
[BlackClock "0:00:08"]
[Board "114"]

1. d4 {[%clk 0:02:58]}  Nf6 {[%clk 0:02:59]} 2. g3 {[%clk 0:02:59]}  d5 {[%clk 0:02:58]} 3. Nf3 {[%clk 0:02:58]}  c5 {[%clk 0:02:58]} 4. Bg2 {[%clk 0:02:58]}  Nc6 {[%clk 0:02:58]} 5. O-O {[%clk 0:02:57]}  e6 {[%clk 0:02:58]} 6. c4 {[%clk 0:02:56]}  dxc4 {[%clk 0:02:55]} 7. dxc5 {[%clk 0:02:54]}  Qxd1 {[%clk 0:02:53]} 8. Rxd1 {[%clk 0:02:55]}  Bxc5 {[%clk 0:02:53]} 9. Nbd2 {[%clk 0:02:56]}  c3 {[%clk 0:02:52]} 10. bxc3 {[%clk 0:02:57]}  O-O {[%clk 0:02:50]} 11. Nb3 {[%clk 0:02:58]}  Bb6 {[%clk 0:02:50]} 12. c4 {[%clk 0:02:52]}  Ne4 {[%clk 0:02:49]} 13. e3 {[%clk 0:02:43]}  f5 {[%clk 0:02:36]} 14. Bb2 {[%clk 0:02:42]}  Rf7 {[%clk 0:02:28]} 15. a4 {[%clk 0:02:39]}  a5 {[%clk 0:02:25]} 16. Nfd4 {[%clk 0:02:24]}  Bd7 {[%clk 0:02:09]} 17. Bxe4 {[%clk 0:02:14]}  fxe4 {[%clk 0:02:08]} 18. c5 {[%clk 0:02:13]}  Bc7 {[%clk 0:01:54]} 19. Nb5 {[%clk 0:02:11]}  Be5 {[%clk 0:01:50]} 20. Bd4 {[%clk 0:02:02]}  Raf8 {[%clk 0:01:47]} 21. Ra2 {[%clk 0:02:01]}  Nb4 {[%clk 0:01:38]} 22. Rad2 {[%clk 0:01:58]}  Bxb5 {[%clk 0:01:37]} 23. axb5 {[%clk 0:01:53]}  a4 {[%clk 0:00:52]} 24. Bxe5 {[%clk 0:01:44]}  axb3 {[%clk 0:00:50]} 25. c6 {[%clk 0:01:45]}  bxc6 {[%clk 0:00:40]} 26. Bd6 {[%clk 0:01:45]}  Nd3 {[%clk 0:00:39]} 27. Bxf8 {[%clk 0:01:43]}  Rxf8 {[%clk 0:00:40]} 28. bxc6 {[%clk 0:01:43]}  b2 {[%clk 0:00:40]} 29. Rb1 {[%clk 0:01:40]}  Rc8 {[%clk 0:00:32]} 30. Rc2 {[%clk 0:01:36]}  Kf7 {[%clk 0:00:30]} 31. Kf1 {[%clk 0:01:35]}  Kf6 {[%clk 0:00:28]} 32. Ke2 {[%clk 0:01:35]}  Nc1+ {[%clk 0:00:18]} 33. Rbxc1 {[%clk 0:01:33]}  bxc1=Q {[%clk 0:00:18]} 34. Rxc1 {[%clk 0:01:34]}  Ke5 {[%clk 0:00:18]} 35. Kd2 {[%clk 0:01:10]}  Kd6 {[%clk 0:00:13]} 36. Rc4 {[%clk 0:00:59]}  Kd5 {[%clk 0:00:06]} 37. Kc3 {[%clk 0:00:58]}  Rc7 {[%clk 0:00:05]} 38. h4 {[%clk 0:00:57]}  e5 {[%clk 0:00:05]} 39. Kb4 {[%clk 0:00:45]}  Rxc6 {[%clk 0:00:04]} 40. Rxc6 {[%clk 0:00:44]}  Kxc6 {[%clk 0:00:05]} 41. g4 {[%clk 0:00:40]}  Kd5 {[%clk 0:00:04]} 42. Kb5 {[%clk 0:00:37]}  g6 {[%clk 0:00:04]} 43. g5 {[%clk 0:00:33]}  Kd6 {[%clk 0:00:04]} 44. Kb6 {[%clk 0:00:32]}  Kd5 {[%clk 0:00:04]} 45. Kc7 {[%clk 0:00:32]}  Kc4 {[%clk 0:00:04]} 46. Kd6 {[%clk 0:00:32]}  Kd3 {[%clk 0:00:05]} 47. Kxe5 {[%clk 0:00:32]}  Ke2 {[%clk 0:00:05]} 48. Kxe4 {[%clk 0:00:33]}  Kxf2 {[%clk 0:00:05]} 49. Kf4 {[%clk 0:00:33]}  Kg2 {[%clk 0:00:06]} 50. e4 {[%clk 0:00:30]}  Kh3 {[%clk 0:00:07]} 51. e5 {[%clk 0:00:31]}  Kxh4 {[%clk 0:00:07]} 52. e6 {[%clk 0:00:31]}  Kh5 {[%clk 0:00:07]} 53. e7 {[%clk 0:00:30]}  h6 {[%clk 0:00:06]} 54. gxh6 {[%clk 0:00:28]}  g5+ {[%clk 0:00:06]} 55. Kf5 {[%clk 0:00:28]}  Kh4 {[%clk 0:00:06]} 56. h7 {[%clk 0:00:27]}  g4 {[%clk 0:00:06]} 57. h8=Q+ {[%clk 0:00:26]}  Kg3 {[%clk 0:00:07]} 58. Qe5+ {[%clk 0:00:24]}  Kf3 {[%clk 0:00:08]} 59. Qf4+ {[%clk 0:00:23]}  Kg2 {[%clk 0:00:08]} 60. Qxg4+ {[%clk 0:00:23]}  Kf2 {[%clk 0:00:08]} 61. Qf4+ {[%clk 0:00:22]}  Kg1 {[%clk 0:00:07]} 62. Qd2 {[%clk 0:00:21]}  Kf1 {[%clk 0:00:07]} 63. Kf4 {[%clk 0:00:21]}  Kg1 {[%clk 0:00:08]} 64. Kf3 {[%clk 0:00:22]}  Kh1 {[%clk 0:00:08]} 65. Kg3 {[%clk 0:00:20]}  Kg1 {[%clk 0:00:08]} 66. Qd1# {[%clk 0:00:19]} 1-0


[Site "https://www.chess.com"]